lending/lending_fUSD_20240131
["ID","MTS","AMOUNT","RATE_DAILY","PERIOD"]
[313085787,1706736636924,-929.50886508,0.00022998,2]
[313085788,1706736636934,-410.8508133,0.00022998,2]
[313085789,1706736636944,-155.24946774,0.00022998,2]
[313085790,1706736636954,-178.94185082,0.00022998,2]
[313085791,1706736636963,-1244.35715284,0.00022998,2]
[313085792,1706736636973,-156.43646517,0.00022998,2]
[313085793,1706736636982,-188.1370286,0.00022999,2]
[313085794,1706736636991,-500.0,0.00022999,2]
[313085795,1706736637000,-500.0,0.00022999,2]
[313085796,1706736637013,-500.0,0.00022999,2]
[313085797,1706736637023,-500.0,0.00022999,2]
[313085798,1706736637032,-326.91249691,0.00022999,2]
[313085799,1706736637041,-500.0,0.00022999,2]
[313085800,1706736637051,-500.0,0.00022999,2]
[313085801,1706736637060,-500.0,0.00022999,2]
[313085802,1706736637070,-500.0,0.00022999,2]
[313085803,1706736637079,-500.0,0.00022999,2]
[313085804,1706736637088,-500.0,0.00022999,2]
[313085805,1706736637098,-500.0,0.00022999,2]
[313085806,1706736637107,-551.53725328,0.00022999,2]
[313085807,1706736637116,-195.12204277,0.00022999,2]
[313085808,1706736637125,-500.0,0.00022999,2]
[313085809,1706736637134,-642.67903511,0.00022999,2]
[313085810,1706736637143,-500.0,0.00022999,2]
[313085811,1706736637153,-500.0,0.00022999,2]
[313085812,1706736637163,-500.0,0.00022999,2]
[313085813,1706736637173,-500.0,0.00022999,2]
[313085814,1706736637182,-500.0,0.00022999,2]
[313085815,1706736637192,-400.45651985,0.00022999,2]
[313085816,1706736637201,-500.0,0.00022999,2]
[313085817,1706736637210,-500.0,0.00022999,2]
[313085818,1706736637219,-500.0,0.00022999,2]
[313085819,1706736637230,-500.0,0.00022999,2]
[313085820,1706736637239,-500.0,0.00022999,2]
[313085821,1706736637248,-500.0,0.00022999,2]
[313085822,1706736637258,-500.0,0.00022999,2]
[313085823,1706736637267,-500.0,0.00022999,2]
[313085824,1706736637276,-500.0,0.00022999,2]
[313085825,1706736637286,-622.71672461,0.00022999,2]
[313085826,1706736637295,-500.0,0.00022999,2]
[313085827,1706736637306,-500.0,0.00022999,2]
[313085828,1706736637315,-500.0,0.00022999,2]
[313085829,1706736637324,-500.0,0.00022999,2]
[313085830,1706736637333,-500.0,0.00022999,2]
[313085831,1706736637342,-500.0,0.00022999,2]
[313085832,1706736637351,-500.0,0.00022999,2]
[313085833,1706736637361,-617.32547124,0.00022999,2]
[313085834,1706736637370,-500.0,0.00022999,2]
[313085835,1706736637378,-500.0,0.00022999,2]
[313085836,1706736637387,-500.0,0.00022999,2]
[313085837,1706736637396,-500.0,0.00022999,2]
[313085838,1706736637405,-500.0,0.00022999,2]
[313085839,1706736637415,-500.0,0.00022999,2]
[313085840,1706736637425,-500.0,0.00022999,2]
[313085841,1706736637434,-500.0,0.00022999,2]
[313085842,1706736637443,-500.0,0.00022999,2]
[313085843,1706736637452,-500.0,0.00022999,2]
[313085844,1706736637462,-500.0,0.00022999,2]
[313085845,1706736637471,-500.0,0.00022999,2]
[313085846,1706736637480,-500.0,0.00022999,2]
[313085847,1706736637490,-500.0,0.00022999,2]
[313085848,1706736637500,-500.0,0.00022999,2]
[313085849,1706736637512,-500.0,0.00022999,2]
[313085850,1706736637522,-500.0,0.00022999,2]
[313085851,1706736637531,-500.0,0.00022999,2]
[313085852,1706736637540,-500.0,0.00022999,2]
[313085853,1706736637550,-500.0,0.00022999,2]
[313085854,1706736637559,-500.0,0.00022999,2]
[313085855,1706736637569,-500.0,0.00022999,2]
[313085856,1706736637579,-500.0,0.00022999,2]
[313085857,1706736637588,-500.0,0.00022999,2]
[313085858,1706736637597,-500.0,0.00022999,2]
[313085859,1706736637606,-500.0,0.00022999,2]
[313085860,1706736637616,-500.0,0.00022999,2]
[313085861,1706736637625,-500.0,0.00022999,2]
[313085862,1706736637634,-500.0,0.00022999,2]
[313085863,1706736637643,-500.0,0.00022999,2]
[313085864,1706736637653,-500.0,0.00022999,2]
[313085865,1706736637662,-500.0,0.00022999,2]
[313085866,1706736637671,-309.53933007,0.00022999,2]
[313085867,1706736637681,-500.0,0.00022999,2]
[313085868,1706736637690,-500.0,0.00022999,2]
[313085869,1706736637700,-2840.53002203,0.00022999,2]
[313085870,1706736637709,-500.0,0.00022999,2]
[313085871,1706736637718,-500.0,0.00022999,2]
[313085873,1706736637727,-500.0,0.00022999,2]
[313085875,1706736637736,-500.0,0.00022999,2]
[313085876,1706736637746,-500.0,0.00022999,2]
[313085877,1706736637759,-500.0,0.00022999,2]
[313085878,1706736637768,-500.0,0.00022999,2]
[313085879,1706736637777,-500.0,0.00022999,2]
[313085880,1706736637786,-500.0,0.00022999,2]
[313085882,1706736637796,-500.0,0.00022999,2]
[313085883,1706736637806,-500.0,0.00022999,2]
[313085884,1706736637816,-500.0,0.00022999,2]
[313085885,1706736637825,-441.77387963,0.00022999,2]
[313085886,1706736637835,-500.0,0.00022999,2]
[313085887,1706736637845,-500.0,0.00022999,2]
[313085888,1706736637854,-500.0,0.00022999,2]
[313085889,1706736637863,-500.0,0.00022999,2]
[313085891,1706736637872,-300.0,0.00022999,2]
[313085893,1706736637882,-300.0,0.00022999,2]
[313085895,1706736637891,-300.0,0.00022999,2]
[313085897,1706736637900,-404.55799692,0.00022999,2]
[313085899,1706736637909,-405.31062302,0.00022999,2]
[313085901,1706736637919,-603.72793681,0.00022999,2]
[313085903,1706736637928,-500.0,0.00022999,2]
[313085905,1706736637936,-150.0,0.00022999,2]
[313085906,1706736637945,-150.0,0.00022999,2]
[313085907,1706736637954,-604.0,0.00023,2]
[313085908,1706736637964,-745353.03058447,0.00023,2]
[313085909,1706736637973,-421289.7102729,0.00023,2]
[313085910,1706736637988,-14536.499997,0.00023,2]
[313085911,1706736638009,-220.06807054,0.00022895,2]
[313085912,1706736638018,-1094.3270664,0.00023,2]
[313085913,1706736638029,-2612.67033109,0.00023,2]
[313085914,1706736638476,-155.0,0.00022516,2]
[313085915,1706736638486,-155.0,0.00022516,2]
[313085916,1706736638495,-155.0,0.00022516,2]
[313085917,1706736638508,-1759.97989414,0.00022534,2]
[313085918,1706736638532,-800.0,0.00022534,2]
[313085920,1706736638551,-155.0,0.00022516,2]
[313085921,1706736638561,-491.4593696,0.00022534,2]
[313085922,1706736638571,-156.59218636,0.00022895,2]
[313085923,1706736638581,-254.81428858,0.00022895,2]
[313085924,1706736638590,-247.85570535,0.00022895,2]
[313085925,1706736638599,-236.85528673,0.00022895,2]
[313085926,1706736638609,-197.17718022,0.00022895,2]
[313085927,1706736638618,-155.3699649,0.00022895,2]
[313085928,1706736638627,-1257.66975103,0.00022895,2]
[313085929,1706736638637,-268.84831641,0.00022895,2]
[313085930,1706736638646,-400.0,0.00022895,2]
[313085931,1706736638655,-525.02591322,0.00022895,2]
[313085932,1706736638665,-500.0,0.00022896,2]
[313085933,1706736638674,-167.42846359,0.00022899,2]
[313085934,1706736638684,-155.98760561,0.00022899,2]
[313085936,1706736638693,-202.3789745,0.00022899,2]
[313085938,1706736638703,-155.0,0.00022899,2]
[313085941,1706736638712,-2816.10851923,0.000229,2]
[313085942,1706736638721,-3636.88543097,0.00023,2]
[313085945,1706736638733,-4941.83006226,0.00023,2]
[313085947,1706736638746,-12951.0,0.00023,2]
[313085958,1706736638845,-245.54677836,0.00022899,2]
[313085960,1706736638854,-291.91822164,0.00023,2]
[313085963,1706736638867,-275.81562226,0.00023,2]
[313085965,1706736638878,-3844.16392929,0.00023,2]
[313085967,1706736638889,-1252.0554888,0.00023,2]
[313085969,1706736638901,-583182.53317703,0.00023,2]
[313085971,1706736638910,-41859.81423983,0.00023,2]
[313085973,1706736638920,-500.0,0.00023,2]
[313085975,1706736638928,-11172.0149443,0.00023003,2]
[313085977,1706736638938,-3757.7518917,0.00023003,2]
[313085979,1706736638948,-114383.7922475,0.00023003,2]
[313085981,1706736638957,-55033.5979423,0.00023019,2]
[313085983,1706736638967,-1319.22455971,0.00023041,2]
[313085985,1706736638976,-7231.22096402,0.0002313,2]
[313085987,1706736638986,-782.88,0.00023283,2]
[313085989,1706736638995,-230.36,0.00023727,2]
[313085991,1706736639004,-184.94,0.00023799,2]
[313085993,1706736639014,-295.25,0.00023803,2]
[313085995,1706736639024,-21227.60583705,0.00023959,2]
[313085997,1706736639033,-201.6881805,0.00024,2]
[313085999,1706736639042,-192.91538509,0.00024,2]
[313086001,1706736639051,-814.643978,0.00024,2]
[313086003,1706736639060,-172.51,0.000242,2]
[313086005,1706736639069,-421.66,0.00024217,2]
[313086007,1706736639079,-168.39,0.00024297,2]
[313086010,1706736639089,-168.38,0.00024297,2]
[313086012,1706736639098,-409.92,0.00024344,2]
[313086013,1706736639108,-737.6,0.00024344,2]
[313086015,1706736639117,-300.0,0.00024347,2]
[313086017,1706736639127,-5785.03,0.00024384,2]
[313086020,1706736639136,-156.4652027,0.00024595,2]
[313086022,1706736639146,-4641.48,0.00024658,2]
[313086024,1706736639155,-250.0,0.00024658,2]
[313086026,1706736639164,-204.0,0.0002481,5]
[313086028,1706736639173,-3913.30748907,0.00024813,2]
[313086030,1706736639183,-184.94,0.00024881,2]
[313086032,1706736639194,-295.25,0.00024885,2]
[313086034,1706736639203,-782.88,0.00024926,2]
[313086036,1706736639212,-300.22453575,0.00025,2]
[313086038,1706736639222,-304.35092203,0.00025,2]
[313086040,1706736639231,-167.85164142,0.00025,2]
[313086048,1706736639396,-208.41030953,0.00025,4]
[313086050,1706736639406,-1588.29384713,0.00025,2]
[313086051,1706736639416,-936.20607359,0.00025,2]
[313086052,1706736639426,-2319.98350189,0.00025,2]
[313086053,1706736639435,-535.64853932,0.00025,2]
[313086054,1706736639444,-350.0,0.00025,3]
[313086055,1706736639453,-2537.0,0.000252,2]
[313086056,1706736639462,-5247.0,0.000253,2]
[313086057,1706736639472,-21227.60583705,0.00025453,2]
[313086058,1706736639481,-184.94,0.00025963,2]
[313086059,1706736639490,-295.25,0.00025967,2]
[313086060,1706736639499,-150.0,0.00026079,2]
[313086061,1706736639513,-421.66,0.00026481,2]
[313086062,1706736639521,-782.88,0.0002657,2]
[313086063,1706736639530,-156.4652027,0.00026724,2]
[313086064,1706736639539,-7496.48010327,0.00026765,5]
[313086065,1706736639548,-204.0,0.00026765,8]
[313086066,1706736639557,-641.49341509,0.00026823,2]
[313086067,1706736639566,-21227.60583705,0.00026947,2]
[313086068,1706736639575,-400.0,0.00027,3]
[313086069,1706736639584,-409.92,0.00027049,2]
[313086070,1706736639593,-737.6,0.00027049,2]
[313086071,1706736639602,-3913.30748907,0.00027161,3]
[313086072,1706736639611,-155.0,0.00027397,2]
[313086073,1706736639620,-176.19,0.00027397,2]
[313086074,1706736639629,-176.18,0.00027397,2]
[313086075,1706736639638,-2500.0,0.00027397,3]
[313086076,1706736639647,-12944.08874246,0.000275,2]
[313086077,1706736639656,-690.93601058,0.00028,2]
[313086078,1706736639665,-236.0,0.00028154,2]
[313086079,1706736639674,-425.0,0.00028154,2]
[313086080,1706736639683,-861.001,0.00028154,2]
[313086081,1706736639692,-150.475,0.00028154,2]
[313086082,1706736639701,-320.0,0.00028154,2]
[313086083,1706736639711,-782.88,0.00028214,2]
[313086084,1706736639720,-176.19,0.00028425,2]
[313086085,1706736639729,-176.18,0.00028425,2]
[313086086,1706736639739,-21227.60583705,0.00028441,2]
[313086087,1706736639748,-204.0,0.0002872,11]
[313086088,1706736639760,-421.66,0.00028745,2]
[313086090,1706736639770,-155.0,0.00028767,2]
[313086091,1706736639780,-156.4652027,0.00028854,2]
[313086093,1706736639790,-450.0,0.00029,3]
[313086095,1706736639799,-176.19,0.00029452,2]
[313086097,1706736639808,-176.18,0.00029452,2]
[313086098,1706736639818,-3913.30748907,0.00029509,4]
[313086099,1706736639827,-409.92,0.00029753,2]
[313086100,1706736639836,-737.6,0.00029753,2]
[313086101,1706736639845,-175.93774684,0.000298,2]
[313086102,1706736639855,-782.88,0.00029858,2]
[313086103,1706736639865,-54126.044841,0.0002988,2]
[313086104,1706736639874,-11065.5732556,0.0002988,2]
[313086105,1706736639882,-3726.5476849,0.0002988,2]
[313086106,1706736639892,-71286.30077148,0.000299,2]
[313086107,1706736639901,-100000.0,0.000299,2]
[313086108,1706736639910,-21227.60583705,0.00029935,2]
[313086109,1706736639920,-155.0,0.0003,2]
[313086110,1706736639929,-698.74199123,0.0003,2]
[313086111,1706736639939,-587.94656821,0.0003,2]
[313086112,1706736639948,-3443.6489718,0.0003,2]
[313086113,1706736639958,-500.0,0.0003,2]
[313086114,1706736639967,-1000.0,0.0003,2]
[313086115,1706736639977,-262.05052,0.0003,2]
[313086116,1706736639986,-262.05053,0.0003,2]
[313086117,1706736639995,-262.05052,0.0003,2]
[313086118,1706736640005,-262.05052,0.0003,2]
[313086119,1706736640018,-262.05052,0.0003,2]
[313086120,1706736640027,-262.05053,0.0003,2]
[313086121,1706736640037,-160.19,0.00030137,2]
[313086122,1706736640046,-155.0,0.00030137,2]
[313086123,1706736640055,-304.55023406,0.00030184,2]
[313086124,1706736640064,-206.64381573,0.00030205,2]
[313086125,1706736640072,-2958.32358132,0.00030205,2]
[313086126,1706736640082,-6827.72173547,0.00030205,2]
[313086127,1706736640091,-268.45,0.00030259,2]
[313086128,1706736640101,-176.19,0.00030479,2]
[313086129,1706736640110,-176.18,0.00030479,2]
[313086130,1706736640119,-204.0,0.00030675,14]
[313086131,1706736640129,-156.4652027,0.00030983,2]
[313086132,1706736640138,-500.0,0.00031,3]
[313086133,1706736640147,-342.0,0.00031,2]
[313086134,1706736640156,-421.66,0.00031009,2]
[313086135,1706736640165,-641.49341509,0.00031078,2]
[313086136,1706736640174,-183.17,0.00031154,2]
[313086137,1706736640183,-181.70536632,0.00031193,2]
[313086138,1706736640194,-749.41219466,0.0003134,2]
[313086139,1706736640203,-204.0,0.0003134,2]
[313086140,1706736640212,-210.0,0.0003134,2]
[313086141,1706736640224,-21227.60583705,0.0003143,3]
[313086142,1706736640233,-176.19,0.00031507,2]
[313086143,1706736640242,-176.18,0.00031507,2]
[313086144,1706736640251,-155.0,0.00031507,2]
[313086145,1706736640264,-152.62701089,0.00031562,2]
[313086146,1706736640273,-152.18105865,0.00031562,2]
[313086147,1706736640282,-152.18105865,0.00031562,2]
[313086148,1706736640291,-180.0,0.00031644,2]
[313086149,1706736640301,-19856.35436476,0.000317,2]
[313086150,1706736640311,-14593.9537838,0.000318,3]
[313086151,1706736640320,-3913.30748907,0.00031856,5]
[313086152,1706736640329,-1602.46514678,0.00032,2]
[313086153,1706736640338,-156.25094584,0.00032,2]
[313086154,1706736640346,-20000.0,0.00032,3]
[313086155,1706736640355,-204.0,0.0003219,2]
[313086156,1706736640365,-210.0,0.0003219,2]
[313086157,1706736640374,-151.0201,0.00032198,3]
[313086159,1706736640384,-3971.27,0.000323,2]
[313086160,1706736640393,-160.19,0.00032329,2]
[313086162,1706736640403,-500.0,0.00032331,2]
[313086163,1706736640412,-409.92,0.00032458,2]
[313086164,1706736640421,-737.6,0.00032458,2]
[313086166,1706736640430,-151.0201,0.00032498,3]
[313086167,1706736640439,-10959.131567,0.00032542,2]
[313086168,1706736640449,-53218.4917398,0.00032545,2]
[313086169,1706736640458,-3695.343478,0.00032567,2]
[313086170,1706736640468,-213.89161875,0.00032588,2]
[313086171,1706736640477,-50000.0,0.00032589,7]
[313086172,1706736640486,-50000.0,0.00032589,7]
[313086173,1706736640495,-204.0,0.0003263,17]
[313086174,1706736640505,-94048.8958479,0.00032778,2]
[313086177,1706736640518,-2999.37727767,0.00032797,2]
[313086180,1706736640527,-151.0201,0.00032798,3]
[313086182,1706736640537,-150.0,0.00032799,2]
[313086185,1706736640547,-150.0,0.00032799,2]
[313086187,1706736640556,-500.0,0.000328,2]
[313086189,1706736640567,-500.0,0.000328,2]
[313086192,1706736640576,-500.0,0.000328,2]
[313086195,1706736640585,-300.0,0.000328,2]
[313086197,1706736640595,-500.0,0.000328,2]
[313086200,1706736640604,-160002.82604466,0.000328,2]
[313086203,1706736640614,-24874.91809396,0.00032811,7]
[313086206,1706736640623,-200.0,0.00032811,2]
[313086208,1706736640632,-500.0,0.00032877,2]
[313086210,1706736640642,-155.4056809,0.00032917,2]
[313086212,1706736640651,-21227.60583705,0.00032924,4]
[313086214,1706736640660,-550.0,0.00033,3]
[313086216,1706736640670,-591.69,0.00033038,2]
[313086218,1706736640679,-204.0,0.0003304,2]
[313086220,1706736640688,-210.0,0.0003304,2]
[313086222,1706736640697,-156.4652027,0.00033113,2]
[313086225,1706736640707,-500.0,0.0003315,2]
[313086227,1706736640717,-500.0,0.0003315,2]
[313086229,1706736640726,-500.0,0.0003315,2]
[313086230,1706736640735,-500.0,0.0003315,2]
[313086232,1706736640744,-500.0,0.0003315,2]
[313086234,1706736640753,-500.0,0.0003315,2]
[313086236,1706736640766,-500.0,0.0003315,2]
[313086238,1706736640775,-500.0,0.0003315,2]
[313086240,1706736640784,-500.0,0.0003315,2]
[313086242,1706736640796,-500.0,0.0003315,2]
[313086244,1706736640805,-500.0,0.0003315,2]
[313086246,1706736640814,-500.0,0.0003315,2]
[313086248,1706736640823,-500.0,0.0003315,2]
[313086250,1706736640832,-500.0,0.0003315,2]
[313086252,1706736640841,-500.0,0.0003315,2]
[313086254,1706736640850,-500.0,0.0003315,2]
[313086256,1706736640859,-500.0,0.0003315,2]
[313086258,1706736640867,-500.0,0.0003315,2]
[313086260,1706736640877,-500.0,0.0003315,2]
[313086262,1706736640886,-500.0,0.0003315,2]
[313086264,1706736640894,-500.0,0.0003315,2]
[313086266,1706736640904,-500.0,0.0003315,2]
[313086268,1706736640913,-500.0,0.0003315,2]
[313086270,1706736640922,-500.0,0.0003315,2]
[313086272,1706736640931,-500.0,0.0003315,2]
[313086274,1706736640940,-500.0,0.0003315,2]
[313086276,1706736640949,-500.0,0.0003315,2]
[313086278,1706736640958,-500.0,0.0003315,2]
[313086280,1706736640968,-500.0,0.0003315,2]
[313086282,1706736640977,-500.0,0.0003315,2]
[313086284,1706736640986,-500.0,0.0003315,2]
[313086286,1706736640995,-500.0,0.0003315,2]
[313086288,1706736641005,-500.0,0.0003315,2]
[313086290,1706736641017,-500.0,0.0003315,2]
[313086292,1706736641028,-500.0,0.0003315,2]
[313086294,1706736641037,-500.0,0.0003315,2]
[313086295,1706736641046,-500.0,0.0003315,2]
[313086296,1706736641056,-1000.0,0.00033151,120]
[313086297,1706736641065,-151.0201,0.00033198,4]
[313086298,1706736641074,-421.66,0.00033273,2]
[313086299,1706736641083,-151.0201,0.00033498,4]
[313086300,1706736641093,-591.0,0.000335,2]
[313086301,1706736641102,-150.0,0.00033588,2]
[313086302,1706736641111,-151.0201,0.00033798,4]
[313086303,1706736641121,-204.0,0.0003389,2]
[313086304,1706736641131,-210.0,0.0003389,2]
[313086305,1706736641139,-507.31895461,0.00034,4]
[313086306,1706736641149,-1000.0,0.00034091,7]
[313086307,1706736641158,-1000.0,0.00034091,7]
[313086308,1706736641168,-1000.0,0.00034091,7]
[313086309,1706736641177,-1000.0,0.00034091,7]
[313086310,1706736641186,-1000.0,0.00034091,7]
[313086311,1706736641196,-1000.0,0.00034091,7]
[313086312,1706736641205,-1000.0,0.00034091,7]
[313086313,1706736641214,-1000.0,0.00034091,7]
[313086314,1706736641224,-1000.0,0.00034091,7]
[313086315,1706736641233,-1000.0,0.00034091,7]
[313086316,1706736641242,-664.65816472,0.00034091,7]
[313086317,1706736641250,-500.0,0.00034091,7]
[313086318,1706736641262,-305.26745569,0.00034091,7]
[313086319,1706736641271,-258.43750682,0.00034091,7]
[313086320,1706736641280,-1000.0,0.00034091,7]
[313086321,1706736641289,-500.0,0.00034091,7]
[313086322,1706736641298,-1000.0,0.00034091,7]
[313086323,1706736641309,-336.43590899,0.00034091,7]
[313086324,1706736641318,-1000.0,0.00034091,7]
[313086325,1706736641327,-224.60890233,0.00034091,7]
[313086326,1706736641336,-1606.91724748,0.00034091,7]
[313086327,1706736641345,-1000.0,0.00034091,7]
[313086328,1706736641355,-321.03989887,0.00034091,7]
[313086329,1706736641366,-341.29687807,0.00034091,7]
[313086330,1706736641374,-1000.0,0.00034091,7]
[313086331,1706736641383,-657.32847808,0.00034091,7]
[313086332,1706736641392,-418.2734046,0.00034091,7]
[313086333,1706736641402,-151.0201,0.00034198,6]
[313086334,1706736641411,-3913.30748907,0.00034204,6]
[313086335,1706736641420,-500.0,0.00034325,2]
[313086336,1706736641429,-200.0,0.00034325,2]
[313086337,1706736641438,-21227.60583705,0.00034418,6]
[313086338,1706736641447,-151.0201,0.00034498,6]
[313086339,1706736641456,-1427.620787,0.0003452,2]
[313086340,1706736641465,-160.19,0.00034521,2]
[313086341,1706736641474,-150.0,0.00034548,10]
[313086342,1706736641483,-151.0,0.00034584,120]
[313086343,1706736641493,-204.0,0.00034585,20]
[313086344,1706736641502,-204.0,0.0003474,2]
[313086345,1706736641512,-210.0,0.0003474,2]
[313086346,1706736641523,-2797.05172361,0.00034745,30]
[313086347,1706736641532,-2141.431181,0.00034794,2]
[313086348,1706736641541,-585.25,0.00034795,2]
[313086349,1706736641550,-341.14,0.00034795,2]
[313086350,1706736641559,-151.0201,0.00034798,6]
[313086351,1706736641569,-10852.6898783,0.00034828,2]
[313086352,1706736641579,-52310.9386385,0.00034852,2]
[313086353,1706736641588,-3664.1392712,0.00034876,2]
[313086354,1706736641597,-3906.33131418,0.000349,2]
[313086355,1706736641607,-3906.33131402,0.000349,2]
[313086356,1706736641616,-3906.33131402,0.000349,2]
[313086357,1706736641625,-3906.33131402,0.000349,2]
[313086358,1706736641634,-3906.33131402,0.000349,2]
[313086359,1706736641643,-3906.33131402,0.000349,2]
[313086360,1706736641652,-3906.33131402,0.000349,2]
[313086361,1706736641661,-3906.33131402,0.000349,2]
[313086362,1706736641670,-2855.241575,0.00034931,2]
[313086363,1706736641679,-5000.0,0.00035,7]
[313086364,1706736641688,-221.51654335,0.00035,4]
[313086365,1706736641697,-3000.0,0.00035,2]
[313086366,1706736641707,-1264.50569763,0.00035,4]
[313086367,1706736641717,-905.45468879,0.00035,4]
[313086368,1706736641726,-155.0,0.00035,2]
[313086369,1706736641735,-155.41728124,0.00035,2]
[313086370,1706736641744,-3000.0,0.00035,11]
[313086371,1706736641754,-175.30167221,0.00035,2]
[313086372,1706736641765,-451.45066495,0.00035,2]
[313086373,1706736641774,-450.0,0.00035,3]
[313086374,1706736641783,-901.12345678,0.00035,2]
[313086375,1706736641792,-600.0,0.00035,3]
[313086376,1706736641802,-27462.94883749,0.00035,2]
[313086377,1706736641810,-1000.0,0.00035,2]
[313086378,1706736641820,-10000.0,0.00035001,2]
[313086379,1706736641829,-4565.426632,0.0003501,11]
[313086380,1706736641838,-3569.051969,0.00035068,2]
[313086381,1706736641848,-150.0,0.00035068,2]
[313086382,1706736641858,-3906.33131402,0.00035097,2]
[313086383,1706736641868,-151.0201,0.00035198,10]
[313086384,1706736641877,-156.4652027,0.00035243,2]
[313086385,1706736641886,-151.0,0.0003529,30]
[313086386,1706736641896,-641.49341509,0.00035334,7]
[313086387,1706736641905,-4996.672757,0.00035342,2]
[313086388,1706736641915,-151.0201,0.00035498,10]
[313086389,1706736641924,-421.66,0.00035537,2]
[313086390,1706736641934,-204.0,0.0003559,2]
[313086391,1706736641943,-210.0,0.0003559,2]
[313086392,1706736641952,-5785.03,0.00035616,2]
[313086393,1706736641961,-3763.78,0.00035616,2]
[313086394,1706736641970,-420.05,0.00035616,2]
[313086395,1706736641980,-341.38,0.00035616,2]
[313086396,1706736642127,-432.55,0.00035616,2]
[313086397,1706736642137,-420.05,0.00035616,2]
[313086398,1706736642146,-410.03,0.00035616,2]
[313086399,1706736642155,-341.38,0.00035616,2]
[313086400,1706736642163,-420.05,0.00035616,2]
[313086401,1706736642172,-410.03,0.00035616,2]
[313086402,1706736642181,-416.77,0.00035616,2]
[313086403,1706736642191,-341.38,0.00035616,2]
[313086404,1706736642200,-341.38,0.00035616,2]
[313086405,1706736642209,-416.77,0.00035616,2]
[313086406,1706736642220,-420.05,0.00035616,2]
[313086407,1706736642229,-420.05,0.00035616,2]
[313086408,1706736642238,-341.38,0.00035616,2]
[313086409,1706736642247,-416.77,0.00035616,2]
[313086410,1706736642258,-416.77,0.00035616,2]
[313086411,1706736642269,-341.38,0.00035616,2]
[313086412,1706736642278,-420.05,0.00035616,2]
[313086413,1706736642287,-416.77,0.00035616,2]
[313086414,1706736642298,-420.05,0.00035616,2]
[313086415,1706736642309,-416.77,0.00035616,2]
[313086416,1706736642318,-416.77,0.00035616,2]
[313086417,1706736642327,-837.4,0.00035616,2]
[313086418,1706736642336,-416.77,0.00035616,2]
[313086419,1706736642345,-341.38,0.00035616,2]
[313086420,1706736642354,-151.0201,0.00035798,10]
[313086421,1706736642364,-500.0,0.0003588,2]
[313086422,1706736642373,-500.0,0.0003588,2]
[313086423,1706736642382,-500.0,0.0003588,2]
[313086424,1706736642391,-520.35,0.0003588,2]
[313086425,1706736642401,-500.0,0.0003588,2]
[313086426,1706736642410,-21227.60583705,0.00035912,8]
[313086427,1706736642419,-152.0,0.00035916,3]
[313086428,1706736642429,-1000.0,0.00036,6]
[313086429,1706736642439,-151.0,0.0003601,7]
[313086430,1706736642448,-150.576424,0.000361,2]
[313086431,1706736642458,-151.0201,0.00036198,13]
[313086432,1706736642467,-16576.29713723,0.00036207,3]
[313086433,1706736642478,-4607.34919322,0.00036208,4]
[313086434,1706736642487,-443.0,0.00036224,2]
[313086435,1706736642496,-5911.9335595,0.00036429,2]
[313086436,1706736642505,-416.77,0.00036438,2]